bitfinex/quotes_BTCUSD_20250730
["timestamp","ask_amount","ask_price","bid_price","bid_amount"]
[1753834012054,5.12789658,118030.0,118020.0,0.03961]
[1753834013460,5.11942438,118030.0,118020.0,0.03961]
[1753834013963,5.12789658,118030.0,118020.0,0.03961]
[1753834015262,5.11942438,118030.0,118020.0,0.03713]
[1753834015478,5.12154438,118030.0,118020.0,0.03713]
[1753834015697,5.13001658,118030.0,118020.0,0.03713]
[1753834017074,5.13848885,118030.0,118020.0,0.03713]
[1753834017556,5.13001658,118030.0,118020.0,0.03713]
[1753834018459,5.46399846,118030.0,118020.0,0.003]
[1753834019135,5.61399846,118030.0,118020.0,0.003]
[1753834019777,0.52542027,118010.0,118000.0,0.0318]
[1753834020007,0.65730027,118010.0,118000.0,0.03391]
[1753834020222,0.008474,118000.0,117990.0,0.03483]
[1753834020449,4.279105,118000.0,117990.0,0.08694]
[1753834020884,4.408825,118000.0,117990.0,0.03694]
[1753834021101,0.1298019,118000.0,117990.0,0.03694]
[1753834021566,0.1382432,118000.0,117990.0,0.03694]
[1753834022456,0.1382432,118000.0,117990.0,0.08694]
[1753834023122,0.1382432,118000.0,117990.0,0.09194]
[1753834023348,0.27968,118010.0,117990.0,0.09194]
[1753834023569,4.279105,118000.0,117990.0,0.09242484]
[1753834024304,0.008614,118000.0,117990.0,0.09082484]
[1753834024524,4.279105,118000.0,117990.0,0.09082484]
[1753834024795,4.279105,118000.0,117990.0,0.08882484]
[1753834025537,4.279105,118000.0,117990.0,0.09082484]
[1753834025984,4.279105,118000.0,117990.0,0.08982484]
[1753834026344,4.279105,118000.0,117990.0,0.09282484]
[1753834026540,4.279105,118000.0,117990.0,0.09182484]
[1753834027061,4.279105,118000.0,117990.0,0.09382484]
[1753834027448,4.28779711,118000.0,117990.0,0.09382484]
[1753834027649,0.00869211,118000.0,117990.0,0.09382484]
[1753834028076,4.279105,118000.0,117990.0,0.09382484]
[1753834028759,0.02577735,118000.0,117990.0,0.09382484]
[1753834029218,4.279105,118000.0,117990.0,0.09382484]
[1753834030862,4.279105,118000.0,117990.0,0.11791884]
[1753834031281,4.2877559,118000.0,117990.0,0.11791884]
[1753834031485,0.0086509,118000.0,117990.0,0.11791884]
[1753834031717,4.279105,118000.0,117990.0,0.11791884]
[1753834033296,4.3049715,118000.0,117990.0,0.11791884]
[1753834033528,0.0258665,118000.0,117990.0,0.11791884]
[1753834033750,4.279105,118000.0,117990.0,0.11791884]
[1753834034407,0.00840454,118000.0,117990.0,0.11791884]
[1753834034626,4.279105,118000.0,117990.0,0.11791884]
[1753834036668,0.00858636,118000.0,117990.0,0.11791884]
[1753834036900,4.779105,118010.0,117990.0,0.08511884]
[1753834037107,0.46948,118020.0,118010.0,0.0806]
[1753834037343,0.36555,118020.0,118010.0,0.10885]
[1753834037549,0.34207,118020.0,118010.0,0.10885]
[1753834037760,0.34,118020.0,118010.0,0.10885]
[1753834038764,0.46948,118020.0,118010.0,0.10985]
[1753834038968,0.47785262,118020.0,118010.0,0.10985]
[1753834039429,0.50340262,118020.0,118010.0,0.10985]
[1753834041422,0.47992262,118020.0,118010.0,0.10985]
[1753834041672,0.47785262,118020.0,118010.0,0.10985]
[1753834045681,0.50133262,118020.0,118010.0,0.10985]
[1753834045887,0.50340262,118020.0,118010.0,0.10985]
[1753834051338,0.47992262,118020.0,118010.0,0.10985]
[1753834051943,0.50340262,118020.0,118010.0,0.10985]
[1753834053006,0.50340262,118020.0,118010.0,0.10666]
[1753834053209,0.50340262,118020.0,118010.0,0.08362]
[1753834054767,0.50340262,118020.0,118010.0,0.0816]
[1753834055216,0.53207095,118020.0,118010.0,0.051]
[1753834055442,0.52359803,118020.0,118010.0,0.051]
[1753834056280,0.51512518,118020.0,118010.0,0.051]
[1753834056501,0.51512518,118020.0,118010.0,0.0673]
[1753834056927,0.52359788,118020.0,118010.0,0.0673]
[1753834057138,0.51512518,118020.0,118010.0,0.0673]
[1753834057760,0.50665262,118020.0,118010.0,0.0673]
[1753834057964,0.50340262,118020.0,118010.0,0.0673]
[1753834058170,0.50340262,118020.0,118010.0,0.083]
[1753834058517,0.50340262,118020.0,118010.0,0.033]
[1753834058727,0.50340262,118020.0,118010.0,0.083]
[1753834059563,0.50340262,118020.0,118010.0,0.10604]
[1753834062995,0.51512511,118020.0,118010.0,0.0173]
[1753834063258,0.50665262,118020.0,118010.0,0.051]
[1753834063491,0.37392262,118020.0,118010.0,0.0669]
[1753834063703,0.37392262,118020.0,118010.0,0.082]
[1753834064188,0.37392262,118020.0,118010.0,0.11135]
[1753834066193,0.34837262,118020.0,118010.0,0.11135]
[1753834066423,0.47917262,118020.0,118010.0,0.11135]
[1753834068179,0.34837262,118020.0,118010.0,0.11135]
[1753834070961,0.37468262,118020.0,118010.0,0.11135]
[1753834075639,0.35046262,118020.0,118010.0,0.11135]
[1753834079386,0.35046262,118020.0,118010.0,0.10959]
[1753834079591,0.34837262,118020.0,118010.0,0.10959]
[1753834080570,0.35046262,118020.0,118010.0,0.10959]
[1753834080770,0.37468262,118020.0,118010.0,0.10959]
[1753834081922,0.37468262,118020.0,118010.0,0.10665]
[1753834082142,0.37468262,118020.0,118010.0,0.08024]
[1753834082143,0.4360671,118020.0,118010.0,0.08024]
[1753834082367,0.44453959,118020.0,118010.0,0.06514]
[1753834082617,0.4360671,118020.0,118010.0,0.06514]
[1753834083766,0.4391971,118020.0,118010.0,0.06514]
[1753834083989,0.4391971,118020.0,118010.0,0.08064]
[1753834084206,0.4360671,118020.0,118010.0,0.08064]
[1753834084425,0.40596188,118020.0,118010.0,0.08064]
[1753834084848,0.37468262,118020.0,118010.0,0.08064]
[1753834089745,0.37468262,118020.0,118010.0,0.1049]
[1753834094771,0.37468262,118020.0,118010.0,0.10694]
[1753834094944,0.37468262,118020.0,118010.0,0.11003]
[1753834107171,0.37468262,118020.0,118010.0,0.10694]
[1753834108045,0.37468262,118020.0,118010.0,0.08064]
[1753834111825,0.37468262,118020.0,118010.0,0.08064]
[1753834125115,0.37468262,118020.0,118010.0,0.05]
[1753834125116,0.38639518,118020.0,118010.0,0.05]
[1753834125337,0.44833185,118020.0,118010.0,0.05]
[1753834125565,0.47340455,118020.0,118010.0,0.05]
[1753834126270,0.44833185,118020.0,118010.0,0.05]
[1753834126488,0.41684708,118020.0,118010.0,0.05]
[1753834126703,0.38639511,118020.0,118010.0,0.05]
[1753834128405,0.37792262,118020.0,118010.0,0.05]
[1753834128622,0.37463262,118020.0,118010.0,0.05]
[1753834139166,0.37463262,118020.0,118010.0,0.0817]
[1753834142201,0.37463262,118020.0,118010.0,0.0654]
[1753834142428,0.37463262,118020.0,118010.0,0.05]
[1753834145282,0.37335262,118020.0,118010.0,0.05]
[1753834145497,0.37335262,118020.0,118010.0,0.0654]
[1753834146694,0.37335262,118020.0,118010.0,0.05]
[1753834154981,0.37335262,118020.0,118010.0,0.082]
[1753834155657,0.02626,118020.0,118010.0,0.0661]
[1753834158074,0.02626,118020.0,118010.0,0.09017]
[1753834158283,0.05443258,118020.0,118010.0,0.09017]
[1753834158700,0.02626,118020.0,118010.0,0.09017]
[1753834159837,0.02626,118020.0,118010.0,0.09231]
[1753834160074,0.02626,118020.0,118010.0,0.10761]
[1753834160313,0.02626,118020.0,118010.0,0.11061]
[1753834162679,0.05428788,118020.0,118010.0,0.11061]
[1753834163520,0.03006788,118020.0,118010.0,0.11061]
[1753834163734,0.39554288,118020.0,118010.0,0.11061]
[1753834163945,0.39350288,118020.0,118010.0,0.11061]
[1753834168870,0.41761288,118020.0,118010.0,0.11061]
[1753834170049,0.41964288,118020.0,118010.0,0.11061]
[1753834175381,0.39350288,118020.0,118010.0,0.11061]
[1753834175594,0.02802788,118020.0,118010.0,0.11061]
[1753834176043,0.33513,118030.0,118020.0,0.0814]
[1753834176252,0.33513,118030.0,118020.0,0.08354]
[1753834176492,0.33513,118030.0,118020.0,0.11061]
[1753834177810,0.36326984,118030.0,118020.0,0.11061]
[1753834178023,0.36326984,118030.0,118020.0,0.23993]
[1753834178489,0.36326984,118030.0,118020.0,0.24193]
[1753834178922,0.36326984,118030.0,118020.0,0.24393]
[1753834179987,0.36326984,118030.0,118020.0,0.11461]
[1753834180182,0.36326984,118030.0,118020.0,0.24393]
[1753834190193,0.38629984,118030.0,118020.0,0.19393]
[1753834190415,0.38825984,118030.0,118020.0,0.24393]
[1753834191679,0.45325651,118030.0,118020.0,0.13328]
[1753834191897,0.45325651,118030.0,118020.0,0.18328]
[1753834192334,0.46172828,118030.0,118020.0,0.18328]
[1753834192488,0.45325651,118030.0,118020.0,0.18328]
[1753834192906,0.39131984,118030.0,118020.0,0.054]
[1753834193341,0.38825984,118030.0,118020.0,0.054]
[1753834194954,0.38825984,118030.0,118020.0,0.0854]
[1753834200391,0.38825984,118030.0,118020.0,0.10993]
[1753834200606,0.38825984,118030.0,118020.0,0.0854]
[1753834201506,1.38825984,118030.0,118020.0,0.0854]
[1753834201888,1.38825984,118030.0,118020.0,0.0691]
[1753834203595,1.38825984,118030.0,118020.0,0.0842]
[1753834205650,1.51753984,118030.0,118020.0,0.0842]
[1753834209401,1.51753984,118030.0,118020.0,0.08332]
[1753834214427,1.51753984,118030.0,118020.0,0.10831]
[1753834216603,1.51753984,118030.0,118020.0,0.08332]
[1753834217222,1.51753984,118030.0,118020.0,0.05312]
[1753834220056,1.52601168,118030.0,118020.0,0.05312]
[1753834220277,1.52601161,118030.0,118020.0,0.00312]
[1753834220525,6.50144719,118030.0,118020.0,0.00312]
[1753834220714,6.62122322,118030.0,118020.0,0.05312]
[1753834221594,6.53674592,118030.0,118020.0,0.05312]
[1753834222491,6.70619436,118030.0,118020.0,0.05312]
[1753834223528,6.68071936,118030.0,118020.0,0.05312]
[1753834223802,6.68071936,118030.0,118020.0,0.00312]
[1753834224132,6.66242386,118030.0,118020.0,0.05312]
[1753834225305,6.49297542,118030.0,118020.0,0.05312]
[1753834226514,6.49297542,118030.0,118020.0,0.00312]
[1753834226694,6.46252345,118030.0,118020.0,0.05312]
[1753834228708,6.69012045,118030.0,118020.0,0.00312]
[1753834228955,6.68164846,118030.0,118020.0,0.00312]
[1753834230456,6.52067194,118030.0,118020.0,0.00312]
[1753834230677,6.4225506,118030.0,118020.0,0.00312]
[1753834230897,6.43102273,118030.0,118020.0,0.00312]
[1753834231116,6.44929518,118030.0,118020.0,0.00312]
[1753834231577,6.43102273,118030.0,118020.0,0.00312]
[1753834235014,6.40260684,118030.0,118020.0,0.00312]
[1753834235252,6.37112214,118030.0,118020.0,0.03021]
[1753834235472,6.37112214,118030.0,118020.0,0.04641]
[1753834235662,6.37959398,118030.0,118020.0,0.04641]
[1753834236459,6.38806597,118030.0,118020.0,0.04641]
[1753834236679,6.37959398,118030.0,118020.0,0.04641]
[1753834238397,6.38806597,118030.0,118020.0,0.04641]
[1753834238589,6.37959398,118030.0,118020.0,0.04641]
[1753834238805,6.38806597,118030.0,118020.0,0.04641]
[1753834239041,6.37112214,118030.0,118020.0,0.04641]
[1753834239906,6.37959398,118030.0,118020.0,0.04641]
[1753834240128,6.37112214,118030.0,118020.0,0.04641]
[1753834240558,6.37959398,118030.0,118020.0,0.04641]
[1753834240881,6.37112214,118030.0,118020.0,0.04641]
[1753834241082,6.37959398,118030.0,118020.0,0.02142]
[1753834241286,6.37112214,118030.0,118020.0,0.01932]
[1753834241505,6.37959398,118030.0,118020.0,0.01932]
[1753834241979,6.38806597,118030.0,118020.0,0.01932]
[1753834242138,6.41851347,118030.0,118020.0,0.00312]
[1753834242938,6.44999817,118030.0,118020.0,0.00312]
[1753834243161,6.50095817,118030.0,118020.0,0.00312]
[1753834243384,6.44999817,118030.0,118020.0,0.00312]
[1753834244102,6.45847037,118030.0,118020.0,0.00312]
[1753834244341,6.44999817,118030.0,118020.0,0.00312]
[1753834244780,6.4584703,118030.0,118020.0,0.00312]
[1753834244995,6.44999817,118030.0,118020.0,0.00312]
[1753834245441,6.45847023,118030.0,118020.0,0.00312]
[1753834246092,6.45847023,118030.0,118020.0,0.01912]
[1753834246347,6.46694243,118030.0,118020.0,0.01912]
[1753834247359,6.46694243,118030.0,118020.0,0.00312]
[1753834247574,6.47541478,118030.0,118020.0,0.00312]
[1753834248193,6.46694243,118030.0,118020.0,0.00312]
[1753834248386,6.49370663,118030.0,118020.0,0.00312]
[1753834248641,6.48523428,118030.0,118020.0,0.00312]
[1753834251092,6.49370663,118030.0,118020.0,0.00312]
[1753834251447,6.49370713,118030.0,118020.0,0.00312]
[1753834251653,2.21460213,118030.0,118020.0,0.00312]
[1753834251882,6.48523471,118030.0,118020.0,0.00312]
[1753834252753,6.33523471,118030.0,118020.0,0.00312]
[1753834253841,6.31829024,118030.0,118020.0,0.00312]
[1753834254247,6.31828995,118030.0,118020.0,0.00312]
[1753834254428,6.32676208,118030.0,118020.0,0.00312]
[1753834254642,6.31828995,118030.0,118020.0,0.00312]
[1753834255390,6.32992208,118030.0,118020.0,0.00312]
[1753834255610,6.62992208,118030.0,118020.0,0.00312]
[1753834255749,6.62144995,118030.0,118020.0,0.00312]
[1753834255944,6.62992208,118030.0,118020.0,0.00312]
[1753834256368,6.62144995,118030.0,118020.0,0.00312]
[1753834256570,6.62992208,118030.0,118020.0,0.00312]
[1753834257176,6.62144995,118030.0,118020.0,0.00312]
[1753834257582,6.62992208,118030.0,118020.0,0.00312]
[1753834257794,6.62144995,118030.0,118020.0,0.00312]
[1753834258035,6.62992208,118030.0,118020.0,0.00312]
[1753834258453,6.65489435,118030.0,118020.0,0.00312]
[1753834258652,6.62992208,118030.0,118020.0,0.00312]
[1753834259738,6.62144995,118030.0,118020.0,0.00312]
[1753834259943,6.62992208,118030.0,118020.0,0.00312]
[1753834261081,6.62676208,118030.0,118020.0,0.00312]
[1753834261295,6.61828995,118030.0,118020.0,0.00312]
[1753834261745,6.62676208,118030.0,118020.0,0.00312]
[1753834263479,6.62676201,118030.0,118020.0,0.00312]
[1753834268842,6.63523414,118030.0,118020.0,0.00312]
[1753834269045,6.62676201,118030.0,118020.0,0.00312]
[1753834270138,6.63523414,118030.0,118020.0,0.00312]
[1753834270696,2.35612914,118030.0,118020.0,0.00312]
[1753834270912,6.62676201,118030.0,118020.0,0.00312]
[1753834271467,6.63523428,118030.0,118020.0,0.00312]
[1753834272518,6.6437067,118030.0,118020.0,0.00312]
[1753834273312,6.88068868,118030.0,118020.0,0.00312]
[1753834273549,6.87449662,118030.0,118020.0,0.00312]
[1753834273754,6.79001932,118030.0,118020.0,0.00312]
[1753834274990,6.78154705,118030.0,118020.0,0.00312]
[1753834281304,6.77838705,118030.0,118020.0,0.00312]
[1753834284012,6.80386205,118030.0,118020.0,0.00312]
[1753834284829,6.80386205,118030.0,118020.0,0.01852]
[1753834285034,6.80386205,118030.0,118020.0,0.06852]
[1753834286683,6.80386205,118030.0,118020.0,0.01852]
[1753834287104,6.80386205,118030.0,118020.0,0.06852]
[1753834287320,6.80386205,118030.0,118020.0,0.05312]
[1753834287507,2.52792705,118030.0,118020.0,0.00312]
[1753834287723,6.80703205,118030.0,118020.0,0.00312]
[1753834287925,6.88505508,118030.0,118020.0,0.05312]
[1753834288144,6.88505508,118030.0,118020.0,0.00312]
[1753834288498,6.88505508,118030.0,118020.0,0.05312]
[1753834289574,6.88188508,118030.0,118020.0,0.05312]
[1753834290206,6.80386205,118030.0,118020.0,0.06932]
[1753834290333,6.80386205,118030.0,118020.0,0.01932]
[1753834290560,6.80386205,118030.0,118020.0,0.06932]
[1753834291601,2.52475705,118030.0,118020.0,0.06932]
[1753834291843,6.80386205,118030.0,118020.0,0.06932]
[1753834293469,6.80386205,118030.0,118020.0,0.01932]
[1753834294035,6.80386205,118030.0,118020.0,0.06932]
[1753834294547,6.80426205,118030.0,118020.0,0.06932]
[1753834294805,2.60963435,118030.0,118020.0,0.06932]
[1753834295069,6.88873935,118030.0,118020.0,0.06932]
[1753834295324,6.88873935,118030.0,118020.0,0.05312]
[1753834295818,6.88873935,118030.0,118020.0,0.00312]
[1753834296113,6.89190935,118030.0,118020.0,0.00312]
[1753834296836,6.90850935,118030.0,118020.0,0.00312]
[1753834297084,6.89190935,118030.0,118020.0,0.00312]
[1753834299093,6.80743205,118030.0,118020.0,0.00312]
[1753834301678,6.80743205,118030.0,118020.0,0.05312]
[1753834301853,6.80743205,118030.0,118020.0,0.00312]
[1753834302399,6.80743205,118030.0,118020.0,0.05312]
[1753834303495,6.80426205,118030.0,118020.0,0.10734]
[1753834303762,6.80426205,118030.0,118020.0,0.11235]
[1753834304803,6.80426205,118030.0,118020.0,0.06235]
[1753834305053,6.80426205,118030.0,118020.0,0.11235]
[1753834307091,2.52515705,118030.0,118020.0,0.11235]
[1753834307296,6.80426205,118030.0,118020.0,0.11235]
[1753834307891,6.80426205,118030.0,118020.0,0.06235]
[1753834308091,6.80426205,118030.0,118020.0,0.11235]
[1753834309490,6.80426205,118030.0,118020.0,0.06235]
[1753834309745,6.80426205,118030.0,118020.0,0.11235]
[1753834310504,2.52515705,118030.0,118020.0,0.11235]
[1753834310713,6.80426205,118030.0,118020.0,0.11235]
[1753834311563,2.52515705,118030.0,118020.0,0.11235]
[1753834311783,6.80426205,118030.0,118020.0,0.11235]
[1753834312696,6.12942669,118030.0,118020.0,0.11235]
[1753834312910,1.85032169,118030.0,118020.0,0.11235]
[1753834313124,1.83202984,118030.0,118020.0,0.11235]
[1753834319963,1.36238984,118030.0,118020.0,0.11235]
[1753834320213,1.49194984,118030.0,118020.0,0.11235]
[1753834320435,1.33425,118030.0,118020.0,0.1968273]
[1753834321347,1.0,118030.0,118020.0,0.1968273]
[1753834321610,1.0,118030.0,118020.0,0.1948273]
[1753834321843,1.0,118030.0,118020.0,0.1937073]
[1753834322301,1.0,118030.0,118020.0,0.1967073]
[1753834322572,1.0,118030.0,118020.0,0.1937073]
[1753834323050,1.0,118030.0,118020.0,0.1967073]
[1753834323493,1.0,118030.0,118020.0,0.1937073]
[1753834323712,1.0,118030.0,118020.0,0.1977073]
[1753834323943,1.0,118030.0,118020.0,0.2027073]
[1753834325021,1.0,118030.0,118020.0,0.38961912]
[1753834325255,1.0,118030.0,118020.0,0.22015632]
[1753834325699,1.0,118030.0,118020.0,0.22862938]
[1753834325916,1.0,118030.0,118020.0,0.23710237]
[1753834326381,1.0,118030.0,118020.0,0.22862946]
[1753834326630,1.0,118030.0,118020.0,0.22015632]
[1753834328673,1.0,118030.0,118020.0,0.22862946]
[1753834328882,1.0,118030.0,118020.0,0.23710252]
[1753834329111,1.0,118030.0,118020.0,0.22862946]
[1753834329547,1.0,118030.0,118020.0,0.22015632]
[1753834329759,1.0,118030.0,118020.0,0.39809226]
[1753834329970,1.0,118030.0,118020.0,0.38961912]
[1753834330181,1.0,118030.0,118020.0,0.67763766]
[1753834330416,1.0,118030.0,118020.0,0.67763781]
[1753834330634,1.0,118030.0,118020.0,0.68611051]
[1753834330842,1.0,118030.0,118020.0,0.69458314]
[1753834331069,1.0,118030.0,118020.0,0.68611051]
[1753834331289,1.0,118030.0,118020.0,0.69458314]
[1753834331481,1.0,118030.0,118020.0,1.01763781]
[1753834331643,1.0,118030.0,118020.0,1.02611044]
[1753834332054,1.0,118030.0,118020.0,1.0176378]
[1753834332245,1.0,118030.0,118020.0,1.02611043]
[1753834333407,0.85217313,118030.0,118020.0,1.02611043]
[1753834334041,0.85217313,118030.0,118020.0,0.75951043]
[1753834334287,0.85217313,118030.0,118020.0,0.75451043]
[1753834334497,0.85217313,118030.0,118020.0,0.76751043]
[1753834335077,0.78777313,118030.0,118020.0,0.86751043]
[1753834335280,0.501661,118100.0,118080.0,0.05]
[1753834335281,0.057961,118100.0,118080.0,0.05]
[1753834335533,0.025461,118100.0,118090.0,0.46265965]
[1753834335732,0.02471,118110.0,118090.0,0.46265965]
[1753834335733,0.02471,118110.0,118090.0,0.30176541]
[1753834335936,0.02471,118110.0,118100.0,0.07613685]
[1753834336133,0.02471,118110.0,118100.0,0.16061415]
[1753834336134,0.02669,118110.0,118100.0,0.16061415]
[1753834336370,0.04319,118110.0,118100.0,0.2641173]
[1753834336576,0.09220078,118110.0,118100.0,0.2641173]
[1753834336919,0.08896078,118110.0,118100.0,0.2641173]
[1753834337510,0.08896078,118110.0,118100.0,0.2651173]
[1753834338189,0.05851328,118110.0,118100.0,0.2651173]
[1753834338620,0.05851328,118110.0,118100.0,0.2650373]
[1753834339738,0.05851328,118110.0,118100.0,0.2671673]
[1753834339908,0.05851328,118110.0,118100.0,0.2942173]
[1753834340135,0.05851328,118110.0,118100.0,0.2671673]
[1753834340338,0.05851328,118110.0,118100.0,0.2650373]
[1753834342738,0.06175328,118110.0,118100.0,0.1354773]
[1753834343119,0.09220078,118110.0,118100.0,0.2649973]
[1753834344476,0.09220078,118110.0,118100.0,0.1354773]
[1753834344673,0.12106332,118110.0,118100.0,0.2649973]
[1753834344880,0.09220078,118110.0,118100.0,0.1354773]
[1753834345110,0.03182328,118110.0,118100.0,0.2941773]
[1753834346120,0.03182328,118110.0,118100.0,0.28590808]
[1753834346331,0.05851328,118110.0,118100.0,0.28590808]
[1753834347990,0.03182328,118110.0,118100.0,0.28590808]
[1753834348215,0.00012328,118110.0,118100.0,0.28590808]
[1753834349466,0.00012328,118110.0,118100.0,0.3033571]
[1753834349852,0.00012328,118110.0,118100.0,0.3023571]
[1753834350064,0.00012328,118110.0,118100.0,0.15538808]
[1753834350287,0.00012328,118110.0,118100.0,0.28602808]
[1753834351535,0.05851328,118110.0,118100.0,0.25897808]
[1753834351745,0.06175328,118110.0,118100.0,0.25684808]
[1753834351954,0.09220078,118110.0,118100.0,0.25680808]
[1753834353016,0.06175328,118110.0,118100.0,0.25680808]
[1753834353445,0.05851328,118110.0,118100.0,0.25680808]
[1753834353671,0.05851328,118110.0,118100.0,0.28295808]
[1753834353895,0.05851328,118110.0,118100.0,0.28598808]
[1753834355698,0.05851328,118110.0,118100.0,0.28295808]
[1753834355905,0.05851328,118110.0,118100.0,0.25893808]
[1753834356319,0.05851328,118110.0,118100.0,0.25680808]
[1753834356860,0.05851328,118110.0,118100.0,0.2150773]
[1753834357063,0.05851328,118110.0,118100.0,0.25680808]
[1753834357918,0.06175328,118110.0,118100.0,0.25680808]
[1753834359061,0.06175328,118110.0,118100.0,0.2150773]
[1753834359268,0.06175328,118110.0,118100.0,0.25680808]
[1753834360241,0.06175328,118110.0,118100.0,0.12720808]
[1753834360413,0.06175328,118110.0,118100.0,0.25688808]
[1753834363505,0.03380328,118110.0,118100.0,0.25901808]
[1753834363719,0.03182328,118110.0,118100.0,0.28606808]
[1753834364618,0.00012328,118110.0,118100.0,0.28606808]
[1753834378576,0.00012328,118110.0,118100.0,0.45541609]
[1753834378883,0.00012328,118110.0,118100.0,0.47235081]
[1753834379311,0.00012328,118110.0,118100.0,0.47135081]
[1753834379459,0.00012328,118110.0,118100.0,0.46288349]
[1753834379663,0.00012328,118110.0,118100.0,0.46488349]
[1753834379912,0.00012328,118110.0,118100.0,0.45641609]
[1753834380330,0.00012328,118110.0,118100.0,0.49079983]
[1753834380761,0.00012328,118110.0,118100.0,0.47486511]
[1753834380993,0.00012328,118110.0,118100.0,0.48333251]
[1753834381170,0.00012328,118110.0,118100.0,0.5002668]
[1753834381396,0.00012328,118110.0,118100.0,0.50873405]
[1753834381599,0.00012328,118110.0,118100.0,0.51720109]
[1753834381808,0.00012328,118110.0,118100.0,0.8572003]
[1753834382338,0.00012328,118110.0,118100.0,0.8552003]
[1753834382556,0.00012328,118110.0,118100.0,1.1678003]
[1753834382766,0.00012328,118110.0,118100.0,1.1708003]
[1753834383401,0.00012328,118110.0,118100.0,1.1698003]
[1753834383830,0.00012328,118110.0,118100.0,1.1718003]
[1753834384031,0.00012328,118110.0,118100.0,1.1698003]
[1753834384454,0.00012328,118110.0,118100.0,1.1728003]
[1753834384651,0.00012328,118110.0,118100.0,1.1698003]
[1753834385074,0.00012328,118110.0,118100.0,1.1738003]
[1753834391856,0.00012328,118110.0,118100.0,1.16533341]
[1753834392487,0.00012328,118110.0,118100.0,1.02718644]
[1753834392703,0.03242328,118110.0,118100.0,1.08953243]
[1753834392905,0.01622328,118110.0,118100.0,1.10646686]
[1753834393066,0.00012328,118110.0,118100.0,1.10646686]
[1753834393656,0.00012328,118110.0,118100.0,1.11493397]
[1753834394085,0.00012328,118110.0,118100.0,1.10646686]
[1753834394304,0.00012328,118110.0,118100.0,1.12340101]
[1753834394517,0.00012328,118110.0,118100.0,1.12340066]
[1753834395097,0.00012328,118110.0,118100.0,1.11493369]
[1753834395424,0.00012328,118110.0,118100.0,1.10646665]
[1753834395638,0.00012328,118110.0,118100.0,1.09799954]
[1753834396014,0.00012328,118110.0,118100.0,1.10646665]
[1753834396446,0.01592328,118110.0,118100.0,1.10646665]
[1753834396651,0.01592328,118110.0,118100.0,1.11493369]
[1753834396869,0.01592328,118110.0,118100.0,1.10646665]
[1753834397445,0.01592328,118110.0,118100.0,1.11493369]
[1753834397814,0.01592328,118110.0,118100.0,1.10646665]
[1753834398190,0.01592328,118110.0,118100.0,1.11493369]
[1753834398593,0.01592328,118110.0,118100.0,1.11493354]
[1753834399254,0.00012328,118110.0,118100.0,1.08102511]
[1753834399478,0.03182328,118110.0,118100.0,1.08949243]
[1753834399878,0.03182328,118110.0,118100.0,1.09795968]
[1753834400061,0.03182328,118110.0,118100.0,1.08949243]
[1753834400258,0.03182328,118110.0,118100.0,1.09795968]
[1753834400472,0.03182328,118110.0,118100.0,1.08949243]
[1753834400785,0.03182328,118110.0,118100.0,1.09795968]
[1753834401215,0.03182328,118110.0,118100.0,1.10642679]
[1753834401836,0.03182328,118110.0,118100.0,1.1233608]
[1753834402060,0.03182328,118110.0,118100.0,1.12336037]
[1753834402475,0.03182328,118110.0,118100.0,1.11489348]
[1753834402677,0.03182328,118110.0,118100.0,1.10642651]
[1753834403550,0.03182328,118110.0,118100.0,1.11489348]
[1753834403974,0.03182328,118110.0,118100.0,1.12336037]
[1753834404189,0.03182328,118110.0,118100.0,1.11489348]
[1753834404399,0.03182328,118110.0,118100.0,1.10642651]
[1753834404600,0.03182328,118110.0,118100.0,1.09795947]
[1753834405014,0.03182328,118110.0,118100.0,0.96025243]
[1753834405224,0.03182328,118110.0,118100.0,1.09799968]
[1753834405619,0.03182328,118110.0,118100.0,1.10646686]
[1753834405851,0.03182328,118110.0,118100.0,1.11493397]
[1753834406067,0.03182328,118110.0,118100.0,1.10646686]
[1753834406273,0.00012328,118110.0,118100.0,1.17340086]
[1753834406454,0.00012328,118110.0,118100.0,1.22340086]
[1753834422307,0.03252328,118110.0,118100.0,1.22340086]
[1753834423865,0.00012328,118110.0,118100.0,1.22340086]
[1753834424452,0.01652328,118110.0,118100.0,1.22340086]
[1753834424655,0.03182328,118110.0,118100.0,1.09412086]
[1753834424867,0.05750328,118110.0,118100.0,1.22332086]
[1753834425073,0.05750328,118110.0,118100.0,1.22029086]
[1753834425288,0.05750328,118110.0,118100.0,1.22330086]
[1753834426338,0.03393328,118110.0,118100.0,1.22330086]
[1753834426977,0.03393328,118110.0,118100.0,1.00176511]
[1753834427192,0.06052328,118110.0,118100.0,0.6940773]
[1753834427661,0.06052328,118110.0,118100.0,0.4832773]
[1753834427885,0.06052328,118110.0,118100.0,0.52500808]
[1753834428550,0.05750328,118110.0,118100.0,0.44920511]
[1753834428768,0.05750328,118110.0,118100.0,0.44520511]
[1753834428985,0.05750328,118110.0,118100.0,0.28432442]
[1753834429192,0.05750328,118110.0,118100.0,0.2788571]
[1753834429426,0.06052328,118110.0,118100.0,0.2788571]
[1753834429852,0.06052328,118110.0,118100.0,0.2758571]
[1753834430093,0.06052328,118110.0,118100.0,0.2778571]
[1753834434522,0.05750328,118110.0,118100.0,0.2778571]
[1753834439287,0.05750328,118110.0,118100.0,0.44720511]
[1753834439708,0.05750328,118110.0,118100.0,0.47119511]
[1753834439925,0.05750328,118110.0,118100.0,0.3018471]
[1753834443665,0.05750328,118110.0,118100.0,0.2778571]
[1753834443879,0.06052328,118110.0,118100.0,0.2186773]
[1753834444271,0.06052328,118110.0,118100.0,0.26040808]
[1753834444475,0.06052328,118110.0,118100.0,0.2186773]
[1753834444694,0.06052328,118110.0,118100.0,0.2156773]
[1753834444918,0.06052328,118110.0,118100.0,0.0864773]
[1753834445138,0.06052328,118110.0,118100.0,0.2176773]
[1753834445351,0.06052328,118110.0,118100.0,0.25940808]
[1753834445977,0.06052328,118110.0,118100.0,0.25740808]
[1753834446192,0.06052328,118110.0,118100.0,0.25840808]
[1753834446617,0.05750328,118110.0,118100.0,0.25840808]
[1753834446831,0.05750328,118110.0,118100.0,0.26037808]
[1753834447039,0.05750328,118110.0,118100.0,0.28436808]
[1753834447877,0.03182328,118110.0,118100.0,0.48264236]
[1753834448102,0.03182328,118110.0,118100.0,0.49957636]
[1753834448574,0.03182328,118110.0,118100.0,0.83957636]
[1753834448770,0.01652328,118110.0,118100.0,0.88757636]
[1753834449177,0.01652328,118110.0,118100.0,0.89057636]